bitfinex/quotes_BTCUSD_20241123
["timestamp","ask_amount","ask_price","bid_price","bid_amount"]
[1732368351938,0.04916694,98673.0,98660.0,0.05428797]
[1732368352169,0.04916694,98673.0,98646.0,0.11126611]
[1732368352170,0.00571203,98651.0,98646.0,0.11126611]
[1732368352671,0.00571203,98651.0,98641.0,0.05428797]
[1732368352900,0.00571203,98651.0,98642.0,0.10201427]
[1732368353121,0.00571203,98651.0,98643.0,0.15]
[1732368356135,0.0462,98650.0,98637.0,0.04187648]
[1732368359863,0.04128956,98650.0,98637.0,0.04187648]
[1732368364195,0.0757,98649.0,98637.0,0.04187648]
[1732368364841,0.0506671,98648.0,98637.0,0.04187648]
[1732368365048,0.0757,98647.0,98637.0,0.04187648]
[1732368365271,0.00371078,98651.0,98637.0,0.04187648]
[1732368365272,0.0757,98645.0,98637.0,0.04187648]
[1732368365558,0.0494,98643.0,98637.0,0.04187648]
[1732368366193,0.0757,98640.0,98637.0,0.04187648]
[1732368366411,0.0494,98639.0,98637.0,0.04187648]
[1732368367429,0.03,98638.0,98637.0,0.04187648]
[1732368373308,0.03,98638.0,98636.0,0.0017204]
[1732368373309,0.2,98637.0,98636.0,0.0017204]
[1732368373560,0.22678588,98637.0,98636.0,0.0017204]
[1732368373838,0.22511361,98637.0,98636.0,0.0017204]
[1732368379285,0.22511361,98637.0,98635.0,0.03346124]
[1732368379500,0.10328172,98636.0,98607.0,0.15]
[1732368380237,0.10328172,98636.0,98629.0,0.15]
[1732368380713,0.10328172,98636.0,98627.0,0.004049]
[1732368380955,0.00126742,98635.0,98629.0,0.15]
[1732368381215,0.00126741,98636.0,98629.0,0.15]
[1732368381480,0.12309934,98637.0,98627.0,0.004049]
[1732368381699,0.00126738,98636.0,98632.0,0.15]
[1732368382846,0.04739934,98637.0,98632.0,0.15]
[1732368383084,0.04739934,98637.0,98627.0,0.004049]
[1732368383339,0.00126734,98636.0,98627.0,0.004049]
[1732368384457,0.00126734,98636.0,98614.0,0.0452]
[1732368384969,0.00126734,98636.0,98628.0,0.040485]
[1732368388154,0.00126734,98636.0,98628.0,0.08064814]
[1732368388840,0.1298,98634.0,98628.0,0.08064814]
[1732368389101,0.0491,98632.0,98628.0,0.08064814]
[1732368389300,0.10328171,98631.0,98628.0,0.08064814]
[1732368390221,0.13328171,98631.0,98628.0,0.08064814]
[1732368391391,0.13328171,98631.0,98630.0,0.15]
[1732368391626,0.13201427,98631.0,98628.0,0.08064814]
[1732368391891,0.00126744,98630.0,98628.0,0.08064814]
[1732368392120,0.10201427,98629.0,98628.0,0.08064814]
[1732368392349,0.10201427,98629.0,98628.0,0.08236894]
[1732368393785,0.09940617,98629.0,98628.0,0.08236894]
[1732368401155,0.09940617,98629.0,98603.0,0.15]
[1732368401156,0.09940617,98629.0,98603.0,0.03078297]
[1732368401376,0.00126748,98628.0,98603.0,0.03078297]
[1732368401809,0.00126748,98628.0,98602.0,0.0793]
[1732368402023,0.00126748,98628.0,98604.0,0.040489]
[1732368404287,0.00126748,98628.0,98604.0,0.04221]
[1732368405459,0.0457,98627.0,98604.0,0.04221]
[1732368405673,0.00126748,98626.0,98604.0,0.04221]
[1732368406145,0.03126748,98626.0,98604.0,0.04221]
[1732368406583,0.0832,98625.0,98604.0,0.04221]
[1732368406851,0.03126748,98624.0,98604.0,0.04221]
[1732368409782,0.0457,98623.0,98604.0,0.04221]
[1732368410679,0.03,98622.0,98604.0,0.04221]
[1732368420016,0.04626747,98621.0,98604.0,0.04221]
[1732368420019,0.0765,98620.0,98604.0,0.04221]
[1732368420377,0.045,98614.0,98604.0,0.04221]
[1732368420597,0.045,98611.0,98604.0,0.04221]
[1732368420819,0.10201427,98610.0,98604.0,0.04221]
[1732368422454,0.00126771,98609.0,98604.0,0.04221]
[1732368422671,0.045,98608.0,98604.0,0.04221]
[1732368422891,0.00126771,98607.0,98604.0,0.04221]
[1732368426922,0.03126771,98607.0,98604.0,0.04221]
[1732368429870,0.1245,98606.0,98604.0,0.04221]
[1732368433910,0.12045275,98606.0,98604.0,0.04221]
[1732368437564,0.03,98607.0,98604.0,0.04221]
[1732368438994,0.2,98641.0,98630.0,0.37501101]
[1732368439231,0.10287477,98631.0,98610.0,0.05427503]
[1732368439476,0.0008605,98631.0,98611.0,0.22010788]
[1732368439717,0.0008605,98631.0,98612.0,0.1965]
[1732368439950,0.0008605,98631.0,98620.0,0.05427503]
[1732368440163,0.0008605,98631.0,98621.0,0.00101387]
[1732368441128,0.0008605,98631.0,98621.0,0.03101387]
[1732368442283,0.0008605,98631.0,98621.0,0.18101387]
[1732368442563,0.0008605,98631.0,98622.0,0.2253]
[1732368442779,0.0008605,98631.0,98623.0,0.03]
[1732368443259,0.0008605,98631.0,98623.0,0.18]
[1732368444816,0.00126714,98644.0,98623.0,0.18]
[1732368445062,0.002,98663.0,98647.0,0.37501196]
[1732368445288,0.202,98666.0,98627.0,0.045]
[1732368445548,0.2,98666.0,98628.0,0.00101379]
[1732368445788,0.2,98666.0,98629.0,0.0756]
[1732368446001,0.002,98669.0,98629.0,0.07661379]
[1732368446219,0.2,98666.0,98629.0,0.07661379]
[1732368446676,0.002,98669.0,98629.0,0.07661379]
[1732368447131,0.002,98669.0,98630.0,0.00101379]
[1732368447572,0.2,98670.0,98630.0,0.00101379]
[1732368447992,0.047,98658.0,98630.0,0.00101379]
[1732368448692,0.03,98657.0,98631.0,0.07661373]
[1732368450632,0.03,98657.0,98631.0,0.0756]
[1732368452357,0.03,98657.0,98632.0,0.00101373]
[1732368453019,0.03,98657.0,98632.0,0.15101373]
[1732368458296,0.03,98657.0,98632.0,0.15]
[1732368460229,0.0459,98648.0,98632.0,0.15]
[1732368460451,0.13201427,98647.0,98632.0,0.15]
[1732368460923,0.03,98645.0,98608.0,0.023]
[1732368461159,0.03,98643.0,98627.0,0.04060819]
[1732368461405,0.14791427,98642.0,98609.0,0.03]
[1732368461630,0.14791427,98642.0,98628.0,0.03]
[1732368462070,0.03,98641.0,98628.0,0.03]
[1732368462306,0.10201427,98640.0,98628.0,0.03]
[1732368462988,0.10201427,98640.0,98607.0,0.1772425]
[1732368462989,0.0227575,98636.0,98608.0,0.03]
[1732368463211,0.0227575,98638.0,98608.0,0.03]
[1732368463431,0.03,98635.0,98629.0,0.03]
[1732368464413,0.0527575,98636.0,98620.0,0.18]
[1732368464638,0.0527575,98636.0,98632.0,0.0017208]
[1732368467329,0.03,98636.0,98632.0,0.0017208]
[1732368467542,0.0527575,98636.0,98632.0,0.04357188]
[1732368467760,0.03,98636.0,98632.0,0.04357188]
[1732368468023,0.0527575,98636.0,98632.0,0.0017208]
[1732368468260,0.0527575,98636.0,98633.0,0.03]
[1732368469840,0.0527575,98636.0,98632.0,0.0017208]
[1732368472052,0.0527575,98636.0,98632.0,0.04320581]
[1732368472535,0.04286547,98636.0,98632.0,0.04320581]
[1732368477089,0.02010797,98636.0,98632.0,0.04320581]
[1732368477311,0.04286547,98636.0,98632.0,0.04320581]
[1732368480472,0.02010797,98636.0,98632.0,0.04320581]
[1732368480699,0.04286547,98636.0,98632.0,0.04320581]
[1732368481313,0.02010797,98636.0,98632.0,0.04320581]
[1732368481560,0.04286547,98636.0,98632.0,0.04320581]
[1732368483279,0.04286547,98636.0,98619.0,0.0824]
[1732368484405,0.02010797,98636.0,98619.0,0.0824]
[1732368484644,0.02010797,98636.0,98619.0,0.1244066]
[1732368485341,0.04286547,98636.0,98620.0,0.18]
[1732368486618,0.02010797,98636.0,98620.0,0.18]
[1732368486848,0.04286547,98636.0,98620.0,0.18]
[1732368489226,0.04372617,98636.0,98620.0,0.18]
[1732368492756,0.04372617,98636.0,98616.0,0.00246818]
[1732368493179,0.0493,98635.0,98616.0,0.00246818]
[1732368493603,0.0778,98634.0,98608.0,0.0017214]
[1732368493833,0.09790797,98634.0,98608.0,0.0017214]
[1732368494241,0.0227575,98625.0,98608.0,0.0017214]
[1732368494465,0.0486,98623.0,98608.0,0.0017214]
[1732368494667,0.0486,98621.0,98608.0,0.0017214]
[1732368494909,0.0803,98623.0,98608.0,0.0017214]
[1732368494910,0.0486,98619.0,98608.0,0.0017214]
[1732368495134,0.10201427,98618.0,98608.0,0.0017214]
[1732368495336,0.10201427,98618.0,98608.0,0.04354311]
[1732368495540,0.10201427,98618.0,98608.0,0.0017214]
[1732368496205,0.02010797,98617.0,98608.0,0.0017214]
[1732368496429,0.10201427,98616.0,98608.0,0.0017214]
[1732368496654,0.02010797,98617.0,98608.0,0.0017214]
[1732368497961,0.02010797,98618.0,98608.0,0.0017214]
[1732368498986,0.002,98641.0,98632.0,0.36423453]
[1732368499209,0.10201427,98635.0,98608.0,0.0017214]
[1732368500284,0.10201427,98635.0,98624.0,0.15]
[1732368500704,0.10201427,98635.0,98608.0,0.00273538]
[1732368500910,0.10201427,98635.0,98608.0,0.0017214]
[1732368501546,0.10201427,98635.0,98625.0,0.03]
[1732368501994,0.1289,98634.0,98625.0,0.03]
[1732368502192,0.10201427,98633.0,98625.0,0.03]
[1732368505909,0.10201427,98633.0,98625.0,0.07023574]
[1732368506421,0.10201427,98633.0,98625.0,0.03]
[1732368507229,0.10201427,98633.0,98626.0,0.15]
[1732368507475,0.10201427,98633.0,98625.0,0.03]
[1732368508336,0.10201427,98633.0,98626.0,0.15]
[1732368509016,0.10201427,98633.0,98625.0,0.07030419]
[1732368509242,0.10201427,98633.0,98626.0,0.00632029]
[1732368509463,0.10201427,98633.0,98627.0,0.00632029]
[1732368509698,0.10201427,98633.0,98628.0,0.00632029]
[1732368509922,0.10201427,98633.0,98629.0,0.00632029]
[1732368510369,0.10201427,98633.0,98625.0,0.03]
[1732368510825,0.10201427,98633.0,98625.0,0.07049314]
[1732368511073,0.10201427,98633.0,98626.0,0.15]
[1732368511294,0.00101401,98632.0,98604.0,0.04221]
[1732368511535,0.10201427,98631.0,98604.0,0.04221]
[1732368511754,0.00101401,98630.0,98604.0,0.04221]
[1732368511980,0.09757827,98629.0,98604.0,0.04221]
[1732368512221,0.00101401,98628.0,98604.0,0.04221]
[1732368512445,0.10201427,98627.0,98604.0,0.04221]
[1732368512673,0.00101401,98626.0,98604.0,0.0826292]
[1732368512908,0.10201427,98625.0,98604.0,0.0826292]
[1732368513158,0.00101401,98624.0,98604.0,0.0826292]
[1732368513842,0.00101401,98624.0,98608.0,0.0017208]
[1732368514316,0.0481,98623.0,98608.0,0.0017208]
[1732368514550,0.04911401,98623.0,98608.0,0.0017208]
[1732368516253,0.04911401,98623.0,98601.0,0.03078467]
[1732368516487,0.04911401,98623.0,98609.0,0.040492]
[1732368517970,0.0481,98623.0,98609.0,0.040492]
[1732368519960,0.04911401,98623.0,98609.0,0.040492]
[1732368520436,0.0756,98622.0,98609.0,0.040492]
[1732368520897,0.07661401,98622.0,98609.0,0.040492]
[1732368521811,0.0756,98622.0,98609.0,0.040492]
[1732368524961,0.00101401,98621.0,98609.0,0.040492]
[1732368525993,0.10201427,98620.0,98609.0,0.0422126]
[1732368526219,0.04691401,98619.0,98609.0,0.0422126]
[1732368530653,0.04608065,98619.0,98609.0,0.0422126]
[1732368535931,0.00101401,98618.0,98611.0,0.15]
[1732368536155,0.0459,98619.0,98611.0,0.15]
[1732368537268,0.0459,98619.0,98609.0,0.0422126]
[1732368538834,0.0459,98619.0,98603.0,0.02194915]
[1732368539286,0.0459,98619.0,98602.0,0.0795]
[1732368539537,0.0459,98619.0,98604.0,0.040492]
[1732368540455,0.0459,98619.0,98605.0,0.00101402]
[1732368541867,0.0459,98619.0,98606.0,0.0461]
[1732368542087,0.0459,98619.0,98607.0,0.00101402]
[1732368544315,0.0459,98619.0,98605.0,0.00101402]
[1732368550455,0.0467605,98619.0,98605.0,0.00101402]
[1732368555886,0.0489,98617.0,98604.0,0.040492]
[1732368556536,0.0489,98615.0,98604.0,0.040492]
[1732368556735,0.0489,98613.0,98604.0,0.040492]
[1732368556959,0.0489,98613.0,98606.0,0.15]
[1732368562399,0.0489,98613.0,98606.0,0.65]
[1732368565337,0.0489,98613.0,98606.0,0.39609626]
[1732368567929,0.0489,98613.0,98607.0,0.15]
[1732368573153,0.00187451,98617.0,98608.0,0.0755]
[1732368573381,0.0008605,98617.0,98607.0,0.15]
[1732368574204,0.15,98682.0,98634.0,0.40384419]
[1732368574453,0.10201427,98635.0,98607.0,0.15]
[1732368576500,0.0008605,98613.0,98607.0,0.15]
[1732368577625,0.0008605,98613.0,98607.0,0.65]
[1732368580044,0.0494,98622.0,98607.0,0.65]
[1732368580265,0.10201427,98635.0,98631.0,0.4074395]
[1732368580500,0.10201427,98635.0,98608.0,0.1989]
[1732368580725,0.10201427,98635.0,98609.0,0.2255]
[1732368583225,0.0494,98633.0,98608.0,0.15]
[1732368583451,0.0494,98632.0,98608.0,0.15]
[1732368589565,0.0494,98632.0,98608.0,0.65]
[1732368595003,0.0813,98631.0,98608.0,0.65]
[1732368595251,0.0463,98630.0,98608.0,0.65]
[1732368595508,0.1276,98628.0,98608.0,0.65]
[1732368595760,0.0813,98626.0,98608.0,0.65]
[1732368596004,0.0463,98624.0,98608.0,0.65]
[1732368596236,0.10201427,98623.0,98608.0,0.65]
[1732368596481,0.0463,98622.0,98608.0,0.65]
[1732368596991,0.045414,98622.0,98608.0,0.65]
[1732368597205,0.04518914,98622.0,98608.0,0.65]
[1732368598378,0.0813,98621.0,98608.0,0.65]
[1732368600027,0.0813,98621.0,98608.0,0.3162995]
[1732368600319,0.0463,98620.0,98608.0,0.3162995]
[1732368602418,0.0463,98620.0,98609.0,0.15]
[1732368610018,0.0463,98620.0,98609.0,0.65]
[1732368610850,0.03848041,98620.0,98609.0,0.65]
[1732368616995,0.03848041,98620.0,98610.0,0.15]
[1732368617198,0.03848041,98620.0,98610.0,0.20426607]
[1732368621584,0.03848041,98620.0,98610.0,0.70426607]
[1732368628720,0.03934091,98620.0,98610.0,0.70426607]
[1732368630306,0.0008605,98620.0,98610.0,0.86054641]
[1732368630529,0.0008605,98635.0,98610.0,0.86054641]
[1732368630530,0.0008605,98635.0,98614.0,0.15]
[1732368630749,0.0008605,98635.0,98625.0,0.05426607]
[1732368630994,0.0008605,98635.0,98627.0,0.1956]
[1732368631686,0.0008605,98635.0,98628.0,0.00101383]
[1732368631903,0.0466,98657.0,98655.0,0.6834185]
[1732368632146,0.002,98670.0,98655.0,0.15]
[1732368632566,0.1235,98671.0,98655.0,0.15]
[1732368632792,0.002,98670.0,98655.0,0.15]
[1732368633050,0.002,98670.0,98646.0,0.05426607]
[1732368633723,0.1235,98671.0,98646.0,0.05426607]
[1732368635961,0.1235,98671.0,98647.0,0.15]
[1732368636885,0.049,98655.0,98647.0,0.15]
[1732368638229,0.10201427,98654.0,98647.0,0.15]
[1732368638444,0.0815,98653.0,98647.0,0.15]
[1732368641601,0.0815,98653.0,98647.0,0.1517202]
[1732368642462,0.10201427,98654.0,98647.0,0.1517202]
[1732368644885,0.10201427,98654.0,98647.0,0.0017202]
[1732368645108,0.0821,98653.0,98647.0,0.0017202]
[1732368645341,0.10201427,98652.0,98647.0,0.0017202]
[1732368645567,0.023,98651.0,98647.0,0.0017202]
[1732368645796,0.023,98649.0,98647.0,0.0017202]
[1732368646026,0.10201427,98648.0,98647.0,0.1517202]
[1732368649692,0.0008602,98656.0,98647.0,0.1517202]
[1732368649928,0.0821,98675.0,98647.0,0.18179556]
[1732368650171,0.0821,98675.0,98650.0,0.05426607]
[1732368650614,0.0821,98675.0,98661.0,0.00544388]
[1732368650858,0.0821,98675.0,98669.0,0.15]
[1732368651080,0.10201427,98674.0,98670.0,0.01642577]
[1732368651316,0.10201427,98674.0,98671.0,0.01642577]
[1732368651556,0.10201427,98674.0,98672.0,0.01642577]
[1732368651789,0.10201427,98674.0,98639.0,0.27046413]
[1732368651790,0.10201427,98674.0,98657.0,0.37538677]
[1732368652011,0.10201427,98674.0,98673.0,0.01010843]
[1732368652253,0.19548062,98674.0,98673.0,0.0164262]
[1732368653158,0.21848062,98674.0,98673.0,0.0164262]
[1732368654400,0.023,98673.0,98665.0,0.04178719]
[1732368654624,0.10201427,98672.0,98647.0,0.1517202]
[1732368654876,0.023,98671.0,98647.0,0.19248354]
[1732368655118,0.10201427,98670.0,98647.0,0.19248354]
[1732368655343,0.023,98668.0,98647.0,0.19248354]
[1732368655567,0.10201427,98667.0,98647.0,0.19248354]
[1732368656836,0.10201427,98667.0,98650.0,0.05426607]
[1732368657061,0.00345664,98669.0,98651.0,0.2313]
[1732368658228,0.00345664,98669.0,98651.0,0.0813]
[1732368659394,0.00345664,98669.0,98663.0,0.00544803]
[1732368659618,0.00345664,98669.0,98666.0,0.00544803]
[1732368659908,0.00345664,98669.0,98651.0,0.0813]
[1732368660618,0.12501427,98668.0,98647.0,0.19248354]
[1732368661322,0.12501427,98668.0,98656.0,0.15]
[1732368661547,0.12501427,98668.0,98667.0,0.005451]
[1732368661789,0.22169137,98668.0,98656.0,0.15]
[1732368662021,0.12501427,98668.0,98656.0,0.15]
[1732368662469,0.12501427,98668.0,98657.0,0.01263581]
[1732368662697,0.12501427,98668.0,98666.0,0.0054524]
[1732368662914,0.12501427,98668.0,98667.0,0.01263581]
[1732368663138,0.22332987,98668.0,98667.0,0.01263581]
[1732368663391,0.22332987,98668.0,98663.0,0.00545321]
[1732368663685,0.12501427,98668.0,98647.0,0.04248354]
[1732368664461,0.12501427,98668.0,98648.0,0.01010895]
[1732368664711,0.12501427,98668.0,98651.0,0.0017208]
[1732368664963,0.12501427,98668.0,98652.0,0.01010895]
[1732368665187,0.12501427,98668.0,98651.0,0.0017208]
[1732368665188,0.12501427,98668.0,98653.0,0.01010895]
[1732368665423,0.12501427,98668.0,98654.0,0.01010895]
[1732368665647,0.12501427,98668.0,98655.0,0.01010895]
[1732368665875,0.12501427,98668.0,98646.0,0.43723576]
[1732368666114,0.12501427,98668.0,98646.0,0.4783727]
[1732368666355,0.12501427,98668.0,98647.0,0.00631815]
[1732368666572,0.12501427,98668.0,98648.0,0.00631815]
[1732368666806,0.12501427,98668.0,98649.0,0.00631815]
[1732368667036,0.12501427,98668.0,98650.0,0.00631815]
[1732368667520,0.12501427,98668.0,98651.0,0.00631818]
[1732368667970,0.12501427,98668.0,98652.0,0.00631818]
[1732368668204,0.12501427,98668.0,98653.0,0.00631818]
[1732368668446,0.12501427,98668.0,98654.0,0.00631818]
[1732368668665,0.12501427,98668.0,98655.0,0.00631818]
[1732368668888,0.12501427,98668.0,98656.0,0.00631818]
[1732368669114,0.12501427,98668.0,98657.0,0.00631818]
[1732368669347,0.12501427,98668.0,98658.0,0.00631818]
[1732368669598,0.12501427,98668.0,98660.0,0.00527981]
[1732368669828,0.00431704,98669.0,98661.0,0.01159799]
[1732368670067,0.10633131,98669.0,98662.0,0.01159799]
[1732368670289,0.10633131,98669.0,98663.0,0.00631818]
[1732368670290,0.00345664,98668.0,98663.0,0.00631818]
[1732368670519,0.00345664,98668.0,98664.0,0.00631818]
[1732368670767,0.00345664,98668.0,98662.0,0.00527981]
[1732368670768,0.00345664,98668.0,98657.0,0.22555376]
[1732368671012,0.00345664,98668.0,98658.0,0.00631792]
[1732368671523,0.00345664,98668.0,98659.0,0.00631792]
[1732368671761,0.00345664,98668.0,98660.0,0.00631792]
[1732368671995,0.00345664,98668.0,98661.0,0.00631792]
[1732368672230,0.00345664,98668.0,98662.0,0.00631792]
[1732368672474,0.00345664,98668.0,98663.0,0.00631792]
[1732368672753,0.00345664,98668.0,98664.0,0.00631792]
[1732368672979,0.00345664,98668.0,98650.0,0.05426607]
[1732368672980,0.00345664,98668.0,98665.0,0.00631792]
[1732368673206,0.00345664,98668.0,98666.0,0.00631792]
[1732368673453,0.00345664,98668.0,98667.0,0.00631792]
[1732368675799,0.00345664,98668.0,98667.0,0.01642636]
[1732368676765,0.00345664,98668.0,98667.0,0.00631792]
[1732368677708,0.00345664,98668.0,98663.0,0.2709214]
[1732368678155,0.00345664,98668.0,98664.0,0.2709214]
[1732368678860,0.00345664,98668.0,98663.0,0.2709214]
[1732368679780,0.00345664,98668.0,98664.0,0.27113161]
[1732368680239,0.00345664,98668.0,98663.0,0.27113161]
[1732368680496,0.00345664,98668.0,98664.0,0.27113161]
[1732368681405,0.00345664,98668.0,98663.0,0.27113161]
[1732368682809,0.00345664,98668.0,98662.0,0.27113161]
[1732368683040,0.00345664,98668.0,98663.0,0.27113161]
[1732368683270,0.00345664,98668.0,98657.0,0.0469]
[1732368683271,0.00345664,98668.0,98662.0,0.27113161]
[1732368683710,0.00345664,98668.0,98661.0,0.27113161]
[1732368683938,0.00345664,98668.0,98661.0,0.15]
[1732368684166,0.00345664,98668.0,98661.0,0.42113161]
[1732368684628,0.00345664,98668.0,98662.0,0.27113161]
[1732368684868,0.10547091,98668.0,98662.0,0.27113161]
[1732368685098,0.10547091,98668.0,98659.0,0.15]
[1732368685325,0.10201427,98668.0,98658.0,0.42113161]
[1732368685552,0.0008604,98669.0,98658.0,0.42113161]
[1732368685553,0.10547091,98667.0,98658.0,0.42113161]
[1732368685781,0.10547091,98667.0,98660.0,0.15]
[1732368686005,0.10547091,98667.0,98661.0,0.5]
[1732368686464,0.023,98666.0,98661.0,0.5]
[1732368686735,0.15061427,98665.0,98661.0,0.5]
[1732368687209,0.1051,98664.0,98661.0,0.5]
[1732368687456,0.023,98662.0,98661.0,0.5]
[1732368687677,0.22162185,98662.0,98661.0,0.5]
[1732368694489,0.19862185,98662.0,98661.0,0.5]
[1732368695652,0.19862185,98662.0,98661.0,0.77136333]
[1732368695869,0.19862185,98662.0,98661.0,0.5]
[1732368696816,0.19862185,98662.0,98661.0,0.77136333]
[1732368698388,0.19862185,98662.0,98661.0,0.92136333]
[1732368698840,0.19862185,98662.0,98661.0,0.65]
[1732368699556,0.19862185,98662.0,98661.0,0.92138142]
[1732368700266,0.19862185,98662.0,98661.0,0.65]
[1732368700486,0.19862185,98662.0,98661.0,0.64654336]
[1732368703539,0.19948235,98662.0,98661.0,0.64654336]
[1732368706910,0.19948235,98662.0,98661.0,0.31169593]
[1732368708283,0.54418235,98662.0,98661.0,0.14214842]
[1732368708514,0.54418235,98662.0,98661.0,0.10927427]
[1732368708735,0.56311576,98662.0,98661.0,0.10927427]
[1732368709191,0.54418235,98662.0,98661.0,0.10927427]
[1732368709975,0.54418235,98662.0,98661.0,0.02434938]
[1732368710196,0.56310918,98662.0,98661.0,0.02434938]
[1732368711997,0.56227218,98662.0,98661.0,0.02434938]
[1732368712223,0.36223584,98662.0,98661.0,0.02434938]
[1732368712667,0.56223584,98662.0,98661.0,0.02434938]
[1732368712895,0.36223584,98662.0,98661.0,0.02434938]
[1732368713109,0.56221916,98662.0,98661.0,0.02434938]
[1732368713350,0.56221963,98662.0,98661.0,0.02434938]
[1732368713806,0.56221571,98662.0,98661.0,0.02434938]
[1732368714025,0.54330901,98662.0,98661.0,0.02434938]
[1732368716563,0.54330901,98662.0,98661.0,0.02607018]
[1732368717002,0.34330901,98662.0,98661.0,0.02607018]
[1732368717438,0.29780901,98662.0,98661.0,0.02607018]
[1732368719893,0.22160901,98662.0,98661.0,0.02607018]
[1732368725639,0.22160901,98662.0,98661.0,0.52607018]
[1732368730648,0.19860901,98662.0,98661.0,0.72137018]
[1732368731106,0.0008605,98662.0,98661.0,0.83822804]
[1732368736523,0.0008605,98662.0,98661.0,1.03822804]
[1732368749795,0.0008605,98662.0,98661.0,0.91722804]
[1732368750056,0.0008605,98662.0,98661.0,0.71722804]
[1732368750246,0.0008605,98662.0,98661.0,0.99672804]
[1732368751428,0.0008605,98662.0,98661.0,0.79672804]
[1732368751586,0.0008605,98662.0,98661.0,0.91722804]
[1732368752034,0.0008605,98662.0,98661.0,0.71722804]
[1732368752257,0.0008605,98662.0,98661.0,0.91722804]
[1732368752765,0.0008605,98662.0,98661.0,0.71722804]
[1732368752989,0.0008605,98662.0,98661.0,0.91722804]
[1732368753216,0.0008605,98662.0,98661.0,0.71722804]
[1732368753433,0.0008605,98662.0,98661.0,0.91722804]
[1732368754338,0.0008605,98662.0,98661.0,0.71722804]
[1732368754550,0.0008605,98662.0,98661.0,0.91722804]
[1732368755673,0.0008605,98662.0,98661.0,0.71722804]
[1732368755899,0.0008605,98662.0,98661.0,0.91722804]
[1732368756400,0.0008605,98662.0,98661.0,1.04562804]
[1732368758363,0.0008605,98662.0,98661.0,0.84562804]
[1732368758813,0.0008605,98662.0,98661.0,1.04562804]
[1732368762275,0.0008605,98662.0,98661.0,0.77040901]
[1732368762960,0.0008605,98662.0,98661.0,0.57040901]
[1732368763217,0.0008605,98662.0,98661.0,0.77040901]
[1732368763660,0.0008605,98662.0,98661.0,0.51486439]
[1732368764348,0.0008605,98662.0,98661.0,0.23761677]
[1732368764580,0.0008605,98662.0,98661.0,0.24596394]
[1732368765004,0.0008605,98662.0,98661.0,0.24768454]
[1732368765941,0.0008605,98662.0,98661.0,0.04768454]
[1732368766160,0.0008605,98662.0,98661.0,0.24768454]
[1732368766577,0.0008605,98662.0,98661.0,0.04768454]
[1732368766812,0.0008605,98662.0,98661.0,0.39768454]
[1732368767290,0.23177477,98662.0,98661.0,0.04768454]
[1732368767512,0.20517477,98662.0,98661.0,0.00664206]
[1732368775982,0.29940717,98662.0,98661.0,0.00664206]
[1732368776420,0.29940717,98662.0,98661.0,0.0017206]
[1732368778933,0.29940717,98662.0,98661.0,0.6517206]
[1732368779370,0.29940717,98662.0,98661.0,0.65666165]
[1732368791780,0.20137679,98662.0,98661.0,0.65666165]
[1732368792263,0.20137679,98662.0,98661.0,0.50666165]
[1732368793990,0.22437679,98662.0,98661.0,0.5017206]
[1732368794212,0.023,98661.0,98622.0,0.22570968]
[1732368794432,0.10201427,98630.0,98619.0,0.22570968]
[1732368794645,0.023,98629.0,98613.0,0.0489]
[1732368794860,0.023,98627.0,98613.0,0.0489]
[1732368795083,0.10201427,98626.0,98613.0,0.0489]
[1732368795526,0.023,98625.0,98613.0,0.0489]
[1732368795736,0.10201427,98624.0,98610.0,0.33037686]
[1732368796413,0.08,98623.0,98610.0,0.33037686]
[1732368796631,0.10201427,98622.0,98610.0,0.33037686]
[1732368797745,0.10201427,98622.0,98611.0,0.15]
[1732368799759,0.10201427,98622.0,98612.0,0.00632175]
[1732368799957,0.10201427,98622.0,98613.0,0.00632175]
[1732368800160,0.10201427,98622.0,98615.0,0.0493]
[1732368800361,0.10201427,98622.0,98616.0,0.00632175]
[1732368800600,0.10201427,98622.0,98617.0,0.08472175]
[1732368800857,0.10201427,98622.0,98618.0,0.00632175]
[1732368801052,0.10201427,98622.0,98619.0,0.00632175]
[1732368801263,0.10201427,98622.0,98620.0,0.00632175]
[1732368801470,0.10201427,98622.0,98621.0,0.00632175]
[1732368801675,0.19749246,98622.0,98621.0,0.00632175]
[1732368802013,0.19749246,98622.0,98610.0,0.32430694]
[1732368802194,0.10201427,98622.0,98610.0,0.32430694]
[1732368803356,0.08,98649.0,98621.0,0.2]
[1732368803505,0.10201427,98647.0,98624.0,0.2]
[1732368804975,0.10201427,98647.0,98624.0,0.4]
[1732368805198,0.10074145,98647.0,98627.0,0.2]
[1732368805400,0.0791,98671.0,98635.0,0.2]
[1732368805626,0.10201427,98661.0,98636.0,0.01011135]
[1732368805857,0.10201427,98661.0,98637.0,0.01011135]
[1732368806062,0.10201427,98661.0,98638.0,0.01011135]
[1732368806325,0.10201427,98661.0,98639.0,0.01011135]
[1732368806434,0.10201427,98661.0,98640.0,0.01011135]
[1732368806642,0.10201427,98661.0,98641.0,0.01011135]
[1732368806841,0.10201427,98661.0,98642.0,0.01011135]
[1732368807044,0.10201427,98661.0,98643.0,0.01011135]
[1732368807246,0.10201427,98661.0,98644.0,0.01011135]
[1732368807507,0.10201427,98661.0,98645.0,0.01011135]
[1732368807670,0.10201427,98661.0,98646.0,0.01011135]
[1732368807896,0.10201427,98661.0,98638.0,0.07026045]
[1732368807897,0.10201427,98661.0,98647.0,0.01011135]
[1732368808116,0.10201427,98661.0,98648.0,0.01011135]
[1732368808305,0.10201427,98661.0,98649.0,0.01123797]
[1732368808513,0.10201427,98661.0,98650.0,0.01081163]
[1732368808731,0.10201427,98661.0,98651.0,0.00052962]
[1732368811337,0.10201427,98661.0,98651.0,0.01064097]
[1732368811540,0.10201427,98661.0,98652.0,0.01036647]
[1732368811789,0.10201427,98661.0,98653.0,0.0102638]
[1732368811997,0.10201427,98661.0,98653.0,0.00015245]
[1732368812213,0.10287477,98661.0,98653.0,0.00015245]
[1732368814106,0.10287477,98661.0,98654.0,0.00631912]
[1732368814315,0.10287477,98661.0,98655.0,0.00631912]
[1732368814518,0.10287477,98661.0,98656.0,0.00631912]
[1732368814722,0.10287477,98661.0,98657.0,0.00631912]
[1732368814933,0.10287477,98661.0,98658.0,0.00631912]
[1732368815135,0.10287477,98661.0,98659.0,0.00631912]
[1732368815348,0.10287477,98661.0,98660.0,0.00631912]
[1732368815565,0.19627859,98661.0,98660.0,0.00647175]
[1732368815782,0.19627859,98661.0,98660.0,0.00631912]